[Event "37th ECCC 2022"]
[Site "Mayrhofen"]
[Date "2022.10.03"]
[Round "1.25"]
[White "Suarez Garcia, Carlos"]
[Black "Maghsoodloo, Parham"]
[Result "0-1"]
[ECO "A06"]
[WhiteElo "2430"]
[BlackElo "2721"]
[Annotator "TA"]
[PlyCount "78"]
[EventDate "2022.10.03"]
[EventType "team-tourn"]
[EventCountry "AUT"]
[SourceTitle "playchess.com"]
[Source "ChessBase"]
[SourceQuality "1"]
[TimeControl "40/5400+30:1800+30"]

{[%evp 21,78,-22,-11,-19,0,-2,0,-9,-5,-4,0,0,0,-6,8,-17,-13,-24,-19,-26,-22,-26,-33,-20,-11,-33,-18,-75,-78,-98,-106,-81,-91,-98,-71,-101,-72,-234,-220,-187,-8,-13,-18,-347,-344,-605,-612,-597,-576,-963,-783,-2941,-1596,-2285,-2329,-2068,-1777,-1713,-1424]} 1. Nf3 {[%emt 0:00:13]} d5 {[%emt 0:00:12]} 2. b3 {[%emt 0:00:23]} Bf5 {[%emt 0:01:58]} 3. Bb2 {[%emt 0:00:07]} e6 {[%emt 0:00:56]} 4. g3 {[%emt 0:00:16]} h6 {[%emt 0:00:06]} 5. Bg2 {[%emt 0:00:20]} Nf6 {[%emt 0:00:08]} 6. O-O {[%emt 0:00:24]} Be7 {[%emt 0:00:08]} 7. d3 {[%emt 0:00:08]} O-O {[%emt 0:00:31]} 8. Nbd2 {[%emt 0:00:09]} a5 {[%emt 0:00:22]} 9. a3 {[%emt 0:02:20]} Nbd7 {[%emt 0:01:27]} 10. c4 {[%emt 0:02:14]} c6 {[%emt 0:00:36]} 11. Ra2 {[%emt 0:00:20] is now more promising than 11.Qc2.} Bh7 {[%emt 0:00:21]} 12. Qa1 {[%emt 0:00:40] A12: English Opening: 1...c6 with b3 by White.} Re8 {[%emt 0:03:41]} 13. Ne5 {[%emt 0:03:21]} Bf8 {[%emt 0:01:21] is the legacy move (13...Nxe5).} 14. Nxd7 {[%emt 0:13:56] The position is equal.} Nxd7 {[%emt 0:00:09]} 15. Bc3 {[%emt 0:00:10]} Nc5 {[%emt 0:02:20]} 16. d4 {[%emt 0:10:29] [#]} Na6 $146 {[%emt 0:04:39]} ({Predecessor:} 16... Nd7) 17. Rc1 {[%emt 0:13:34]} b5 {[%emt 0:03:03]} 18. cxb5 {[%emt 0:08:58]} cxb5 {[%emt 0:00:02]} 19. Nf3 {[%emt 0:00:12]} Rc8 {[%emt 0:04:34]} 20. Qb2 {[%emt 0:01:13]} Qb6 {[%emt 0:01:56]} 21. Raa1 {[%emt 0:02:01]} b4 {[%emt 0:07:25]} 22. axb4 {[%emt 0:00:06]} Nxb4 {[%emt 0:00:05][%cal Ob4c2]} 23. Bd2 {[%emt 0:13:13]} Nc2 {[%emt 0:04:39]} 24. Ra4 {[%emt 0:06:43]} ({Much weaker is} 24. Bxa5 Qb5 25. Ra4 (25. Ra2 Qxe2 26. Rb1 g5 $17) 25... Qxe2 $17) (24. Rxa5 $11 {remains equal.} Nxd4 25. Nxd4 Rxc1+ 26. Qxc1 Qxd4 27. Bf3) 24... Bb4 $17 {[%emt 0:01:30]} 25. e3 {[%emt 0:03:49]} Rc7 {[%emt 0:09:09] Black is more active.} 26. Bxb4 {[%emt 0:00:11]} axb4 {[%emt 0:00:08]} 27. Bf1 {[%emt 0:00:25]} Rec8 {[%emt 0:02:06]} 28. Ne5 {[%emt 0:01:44]} Rc3 $1 {[%emt 0:08:27]} 29. Nd7 $2 {[%emt 0:01:27] [#]} (29. Ba6 $17 Ra8 30. Bf1 Rxa4 31. bxa4) 29... Qd8 $1 $19 {[%emt 0:00:12]} 30. Nc5 {[%emt 0:00:17]} Qf6 $2 {[%emt 0:00:24]} (30... Bg6 $19 {[%cal Oe6e5] Threatens to win with ...e5!} 31. Be2 Qf6) 31. Nd7 $1 $11 {[%emt 0:02:43] Inhibits e5.} Qe7 {[%emt 0:07:55]} 32. Nc5 {[%emt 0:00:56][%mdl 8192] [#]} (32. Nb6 $1 $11 Rf8 33. Ra2) 32... e5 $1 $19 {[%emt 0:00:15]} 33. Rd1 {[%emt 0:09:27]} (33. Ba6 Re8 34. Nd3 (34. Bb5 $2 exd4 35. exd4 Nxd4 $19) 34... exd4 35. Rxc2 Bxd3 36. Bxd3 Rxd3 37. Rd2 dxe3 38. Rxd3) 33... exd4 {[%emt 0:02:56] Black is clearly winning.} 34. exd4 {[%emt 0:00:05]} Qf6 {[%emt 0:00:08]} ({Worse is} 34... Nxd4 35. Rxd4 Qxc5 36. Rdxb4 $19) 35. Qa2 {[%emt 0:02:29]} Nxd4 {[%emt 0:01:10]} 36. Nd3 {[%emt 0:00:28]} Nf3+ {[%emt 0:01:49]} 37. Kh1 {[%emt 0:00:14]} Bxd3 {[%emt 0:00:12]} 38. Rxd3 {[%emt 0:01:54]} Rxd3 {[%emt 0:00:02]} 39. Ra8 {[%emt 0:00:26]} Rdc3 {[%emt 0:00:09] Weighted Error Value: White=0.95/Black=0.39} 0-1

[Event "37th ECCC 2022"]
[Site "Mayrhofen"]
[Date "2022.10.03"]
[Round "1.26"]
[White "Van Foreest, Jorden"]
[Black "Wedberg, Tom"]
[Result "1-0"]
[ECO "D37"]
[WhiteElo "2694"]
[BlackElo "2395"]
[Annotator "TA"]
[PlyCount "43"]
[EventDate "2022.10.03"]
[EventType "team-tourn"]
[EventCountry "AUT"]
[SourceTitle "playchess.com"]
[Source "ChessBase"]
[SourceQuality "1"]
[TimeControl "40/5400+30:1800+30"]

{[%evp 14,43,20,0,0,0,0,-19,3,14,17,8,12,7,5,12,12,22,12,0,13,5,97,90,197,194,184,180,158,166,339,333]} 1. d4 {[%emt 0:00:06]} Nf6 {[%emt 0:00:06]} 2. c4 {[%emt 0:00:24]} e6 {[%emt 0:00:28]} 3. Nf3 {[%emt 0:00:30]} d5 {[%emt 0:01:28]} 4. Nc3 {[%emt 0:00:33]} Be7 {[%emt 0:00:15]} 5. g3 {[%emt 0:01:31]} O-O {[%emt 0:05:02]} 6. Bg2 {[%emt 0:00:08]} c6 {[%emt 0:00:59]} 7. O-O {[%emt 0:00:33]} Nbd7 {[%emt 0:00:56]} 8. Ne5 {[%emt 0:01:08] Recently 8.Qd3 got a lot of attention.} Nxe5 {[%emt 0:03:54] E07: Closed Catalan: Main Line (5 Nf3 0-0 6 0-0 Nbd7).} 9. dxe5 {[%emt 0:00:06]} Nd7 {[%emt 0:00:09]} 10. cxd5 {[%emt 0:00:07]} cxd5 {[%emt 0:01:03] The position is equal.} (10... exd5 $5 {[%cal Rd7e5]} 11. f4 Bc5+ 12. Kh1 a5 $11) 11. e4 {[%emt 0:00:05]} dxe4 {[%emt 0:01:38]} 12. Qh5 {[%emt 0:00:11]} Qa5 {[%emt 0:09:23]} 13. Nxe4 {[%emt 0:00:08]} Qxe5 {[%emt 0:00:30]} (13... g6 {with more complications.} 14. Qh6 Qxe5 15. Rd1 Nb6) 14. Qe2 {[%emt 0:00:05] [#]} Nb6 $146 {[%emt 0:05:18]} ({Predecessor:} 14... Nf6 15. Bf4 Qa5 16. Rfd1 e5 17. Bd2 Qb6 18. Be3 Qe6 19. Rac1 Bd7 20. Nxf6+ Bxf6 21. Bxb7 {1-0 (100) Van Foreest,J (2714)-Haria,R (2499) Germany 2022}) 15. Bf4 {[%emt 0:03:13][%cal Bc1f4,Bf4e5,Be5c3][%mdl 1056] White has compensation.} Qa5 {[%emt 0:03:27]} 16. Rfd1 {[%emt 0:02:26]} Nd5 {[%emt 0:07:06]} 17. Be5 {[%emt 0:00:05]} Bd7 {[%emt 0:09:26]} (17... Re8 $11) 18. Nc3 $16 {[%emt 0:02:09][%cal Rc3d5]} ({Of course not} 18. Qg4 $6 f6 19. Nxf6+ Bxf6 $11) 18... Nxc3 {[%emt 0:11:44]} (18... Qa6 $16 {was worth a try.}) 19. Bxc3 $18 {[%emt 0:00:12]} Qc7 {[%emt 0:00:14] [#]} 20. Qg4 $1 {[%emt 0:10:49][%csl Gc3][%cal Rg4g7]} f6 {[%emt 0:00:43] [#]} 21. Rac1 $1 {[%emt 0:00:04][%cal Oc3f6] Strongly threatening Bxf6! White has more active pieces.} Bc6 $2 {[%emt 0:00:49]} (21... Bc5 $2 22. Bb4 b6 23. Bxa8 Rxa8 24. Bxc5 bxc5 25. b4 $18) (21... Rf7 {is a better defense.}) 22. Bxc6 {[%emt 0:01:53] Weighted Error Value: White=0.03 (flawless) /Black=0.35} ({Less strong is} 22. Qxe6+ Rf7 23. Bf1 Qc8 $16) 1-0

[Event "37th ECCC 2022"]
[Site "Mayrhofen"]
[Date "2022.10.03"]
[Round "1.27"]
[White "Engqvist, Thomas"]
[Black "Amin, Bassem"]
[Result "0-1"]
[ECO "C47"]
[WhiteElo "2333"]
[BlackElo "2667"]
[Annotator "TA"]
[PlyCount "48"]
[EventDate "2022.10.03"]
[EventType "team-tourn"]
[EventCountry "AUT"]
[SourceTitle "playchess.com"]
[Source "ChessBase"]
[SourceQuality "1"]
[TimeControl "40/5400+30:1800+30"]

{[%evp 12,48,34,0,0,-17,-10,-18,-13,-19,0,-19,-11,-22,-9,-11,-32,-35,-30,-47,-13,-33,-12,-36,-39,-47,-27,-72,-43,-48,-38,-37,-29,-564,-537,-1425,-1418,-2253,-586]} 1. e4 {[%emt 0:00:06]} e5 {[%emt 0:01:40]} 2. Nf3 {[%emt 0:00:17]} Nc6 {[%emt 0:00:06]} 3. Nc3 {[%emt 0:00:15]} Nf6 {[%emt 0:08:01]} 4. d4 {[%emt 0:00:27]} exd4 {[%emt 0:00:18]} 5. Nxd4 {[%emt 0:00:07]} Bc5 {[%emt 0:08:20]} 6. Be3 {[%emt 0:01:02]} Bb6 {[%emt 0:00:06]} 7. Nxc6 {[%emt 0:07:23] 7.Qd2 is more fashionable.} bxc6 {[%emt 0:01:46] C47: Scotch Four Knights and Four Knights with 4 g3.} 8. Bxb6 {[%emt 0:07:59]} axb6 {[%emt 0:01:25]} 9. Bd3 {[%emt 0:01:58]} O-O {[%emt 0:00:44] The position is equal.} 10. O-O {[%emt 0:00:39]} Re8 {[%emt 0:01:39]} 11. Qf3 {[%emt 0:02:34]} d6 {[%emt 0:03:59] [#]} 12. Rfe1 $146 {[%emt 0:04:14][%cal Oe4e5]} ({Predecessor:} 12. h3 Nd7 13. Qg3 Qf6 14. a3 Ba6 15. Bxa6 Rxa6 16. Rfe1 Raa8 17. Rad1 b5 18. Qf3 Qxf3 19. gxf3 {0-1 (36) Shapovalov,D (1476)-Ralls,R (2465) LSS email 2011}) 12... Bd7 {[%emt 0:03:35]} 13. h3 {[%emt 0:09:20]} Ra5 {[%emt 0:01:33][%cal Ba8a5,Ba5e5,Be5e7][%mdl 32]} 14. Re3 {[%emt 0:04:31]} h6 {[%emt 0:24:03]} 15. Rae1 {[%emt 0:04:28]} Rae5 {[%emt 0:00:24]} 16. a3 {[%emt 0:01:43]} b5 {[%emt 0:03:47]} (16... Nh5 {seems wilder.} 17. Bc4 Rf8 18. Bb3 Qg5) 17. Bf1 {[%emt 0:09:12]} Qb8 {[%emt 0:02:16]} 18. Qd1 {[%emt 0:15:47]} b4 {[%emt 0:09:22]} 19. f4 {[%emt 0:06:55]} R5e7 {[%emt 0:03:13] Black is more active.} (19... R5e6 $5 {[%cal Rb4c3]} 20. axb4 Qxb4 $15) 20. axb4 {[%emt 0:00:07]} Qxb4 {[%emt 0:00:08] White must now prevent ...d5.} 21. Qf3 $1 {[%emt 0:06:03]} d5 $36 {[%emt 0:03:35][%mdl 2048] aiming for ...d4. Black has some pressure.} ({Don't do} 21... Qxb2 22. Rb1 Qa3 {[#]} 23. Nd5 $1 $16) 22. exd5 {[%emt 0:08:13][%mdl 8192]} (22. e5 $11 {and White stays safe.} d4 23. Ne4 Nxe4 24. Rxe4) 22... Qd4 $19 {[%emt 0:00:33][%cal Re7e3] Black is clearly winning.} 23. Kf2 {[%emt 0:00:27] [#]} Bg4 $1 {[%emt 0:00:29][%mdl 512]} 24. Qg3 {[%emt 0:02:22]} (24. d6 Rxe3) 24... Qd2+ {[%emt 0:00:16] Weighted Error Value: White=1.15/Black=0.09 (flawless)} (24... Nh5 $142 25. Nd1 Bxd1 26. Rxd1 Qb6) 0-1

[Event "37th ECCC 2022"]
[Site "Mayrhofen"]
[Date "2022.10.03"]
[Round "1.28"]
[White "Vocaturo, Daniele"]
[Black "Bellon Lopez, Juan Manuel"]
[Result "1-0"]
[ECO "B22"]
[WhiteElo "2615"]
[BlackElo "2318"]
[Annotator "TA"]
[PlyCount "102"]
[EventDate "2022.10.03"]
[EventType "team-tourn"]
[EventCountry "AUT"]
[SourceTitle "playchess.com"]
[Source "ChessBase"]
[SourceQuality "1"]
[TimeControl "40/5400+30:1800+30"]

{[%evp 9,102,58,63,64,73,58,69,65,96,66,115,36,54,39,93,74,82,72,104,95,122,114,132,106,168,125,120,125,187,123,145,145,186,126,128,118,122,118,132,129,118,112,133,118,109,114,107,48,154,169,173,76,146,158,199,195,212,215,422,407,432,432,432,431,424,416,386,248,232,253,240,243,251,217,293,264,326,326,326,326,385,379,643,565,1110,1098,1058,876,1870,1951,5185,5181,4631,4631,1392]} 1. e4 {[%emt 0:00:10]} c5 {[%emt 0:00:11]} 2. c3 {[%emt 0:00:40]} d6 {[%emt 0:02:01]} 3. d4 {[%emt 0:00:56]} Nd7 {[%emt 0:00:36]} 4. Nf3 {[%emt 0:01:40]} e6 {[%emt 0:01:43]} 5. Bd3 {[%emt 0:03:19]} Be7 {[%emt 0:02:02]} 6. O-O {[%emt 0:02:47] B22: Sicilian: 2 c3.} a6 {[%emt 0:00:38]} 7. a4 {[%emt 0:03:17]} Qc7 {[%emt 0:08:43]} 8. Re1 {[%emt 0:04:29] White is slightly better.} b6 {[%emt 0:12:10]} 9. Nbd2 {[%emt 0:02:41]} Bb7 {[%emt 0:01:30] [#]} (9... cxd4 $14 10. cxd4 (10. Nxd4 Bb7 $11) 10... Bb7) 10. Nf1 $146 {[%emt 0:06:05]} ({Better is} 10. d5 $1 $16) ({Predecessor:} 10. b4 cxb4 11. cxb4 d5 12. Qb3 dxe4 13. Nxe4 Bd5 14. Qb1 Ngf6 15. Bg5 Qb7 16. Nfd2 {0-1 (51) Young,A (2042)-Stanojoski,Z (2470) Porto Carras 2011}) 10... c4 $14 {[%emt 0:03:37]} 11. Bc2 {[%emt 0:00:19]} Rc8 {[%emt 0:02:06]} (11... Ngf6 $14) 12. Ng3 {[%emt 0:03:26]} g6 {[%emt 0:03:43]} 13. h3 {[%emt 0:05:48]} h5 {[%emt 0:01:45]} 14. Bg5 {[%emt 0:04:55]} h4 {[%emt 0:08:30] White must now prevent ...Bxg5.} 15. Nf1 {[%emt 0:00:12]} e5 {[%emt 0:04:53]} 16. Qd2 {[%emt 0:04:59]} exd4 {[%emt 0:08:07]} (16... Rh5 $16) 17. Nxd4 {[%emt 0:03:36]} ({Don't take} 17. Qxd4 Ne5 $16) 17... Bxg5 {[%emt 0:04:24]} 18. Qxg5 {[%emt 0:00:09]} Qc5 {[%emt 0:00:47]} (18... Ngf6 $16 {is a better defense.}) 19. Qd2 {[%emt 0:00:57]} (19. Qf4 $18) 19... Ngf6 {[%emt 0:01:11]} 20. Rad1 {[%emt 0:01:03]} Rd8 {[%emt 0:04:17]} 21. b4 {[%emt 0:05:07]} (21. Nf3 $18) 21... cxb3 $16 {[%emt 0:04:38]} 22. Nxb3 {[%mdl 64] Discovered Attack} Qc7 {[%emt 0:03:06]} 23. Qxd6 {[%emt 0:01:01]} Qxd6 {[%emt 0:00:18]} 24. Rxd6 {[%emt 0:00:09]} Ke7 {[%emt 0:00:34]} 25. e5 {[%emt 0:02:31]} Ne8 {[%emt 0:02:46][%cal Bf6e8,Be8c7,Bc7e6][%mdl 32]} 26. Rdd1 {[%emt 0:01:00] White is much more active. The black rooks are badly placed.} Nc7 {[%emt 0:01:13]} 27. Ne3 {[%emt 0:01:54]} Ne6 {[%emt 0:01:16]} 28. Nc4 {[%emt 0:01:28]} ({White should play} 28. c4 $16) 28... Rh5 {[%emt 0:01:51] [#]} (28... Rc8 $14 29. Nbd2 Rc7) 29. Nd4 $1 {[%emt 0:05:49]} Rc8 {[%emt 0:08:32]} 30. Bb3 $36 {[%emt 0:00:15][%mdl 2048] Black is under strong pressure.} (30. Nd6 $18 {is more deadly.} Rxc3 31. Nxe6 (31. Nxb7 Nxd4 32. Rxd4 Rxc2 $11) 31... fxe6 32. Bxg6 (32. Nxb7 Rxc2 33. Re4 Rc7 $15)) 30... Rc7 {[%emt 0:04:23]} (30... Rc5 $142) 31. Nd6 {[%emt 0:02:28]} Ndc5 {[%emt 0:00:48] Threatens to win with ...Nxd4.} 32. Bxe6 {[%emt 0:01:26] Dancing on a razor blade.} Nxe6 {[%emt 0:01:09]} 33. Nxe6 {[%emt 0:02:23]} Kxe6 {[%emt 0:00:07]} (33... fxe6 34. Rd4 a5) 34. Ne8 $18 {[%emt 0:00:27]} Rxc3 {[%emt 0:00:47]} 35. Ng7+ {[%emt 0:00:06]} Ke7 {[%emt 0:00:09] aiming for ...Rg5.} 36. Nxh5 {[%emt 0:00:16]} gxh5 {[%emt 0:00:04][%mdl 4096] Endgame KRR-KRB} 37. Rb1 {[%emt 0:03:29] Against b5} Rc6 {[%emt 0:00:03]} 38. Rb4 {[%emt 0:00:09]} Rg6 {[%emt 0:00:23]} 39. Rxh4 {[%emt 0:01:35]} Rxg2+ {[%emt 0:01:57]} 40. Kf1 {[%emt 0:00:04]} Rg5 {[%emt 0:02:31]} 41. Re3 {[%emt 0:30:08]} Bc6 {[%emt 0:30:58]} 42. Rc4 {[%emt 0:04:01]} Bd5 {[%emt 0:00:00]} 43. Rd4 {[%emt 0:00:00]} Be6 {[%emt 0:00:00]} 44. h4 {[%emt 0:00:00]} Rg6 {[%emt 0:00:00]} 45. Rg3 {[%emt 0:00:00]} Rxg3 $2 {[%emt 0:00:00]} (45... Rh6 46. f4 b5) 46. fxg3 {[%emt 0:00:00] KR-KB. White is clearly winning.} b5 {[%emt 0:00:00]} 47. a5 {[%emt 0:00:00]} Bc4+ {[%emt 0:00:00]} 48. Ke1 {[%emt 0:00:00]} Ke6 {[%emt 0:00:00]} 49. Rd6+ {[%emt 0:00:00]} Kxe5 {[%emt 0:00:00]} 50. Rxa6 {[%emt 0:00:00]} Kd4 {[%emt 0:00:00]} 51. Kd2 {[%emt 0:00:00]} Kd5 {Weighted Error Value: White=0.20 (precise) /Black=0.39} 1-0

[Event "37th ECCC 2022"]
[Site "Mayrhofen"]
[Date "2022.10.03"]
[Round "1.29"]
[White "Reizniece-Ozola, Dana"]
[Black "Tregubov, Pavel V."]
[Result "1/2-1/2"]
[ECO "A20"]
[WhiteElo "2279"]
[BlackElo "2548"]
[Annotator "TA"]
[PlyCount "69"]
[EventDate "2022.10.03"]
[EventType "team-tourn"]
[EventCountry "AUT"]
[SourceTitle "playchess.com"]
[Source "ChessBase"]
[SourceQuality "1"]
[TimeControl "40/5400+30:1800+30"]

{[%evp 18,69,12,8,17,0,-5,0,0,0,15,0,0,0,5,-22,-22,-22,-29,-19,0,0,0,-16,0,0,0,0,0,0,0,0,0,-53,-58,-60,-54,-97,-97,-84,-49,-52,-52,-58,-43,-16,0,-54,0,-110,-103,-103,-93,-97]} 1. c4 {[%emt 0:00:02]} e5 {[%emt 0:00:08]} 2. g3 {[%emt 0:00:21]} Nf6 {[%emt 0:00:08]} 3. Bg2 {[%emt 0:00:07]} Bc5 {[%emt 0:00:14]} 4. Nc3 {[%emt 0:00:20]} Nc6 {[%emt 0:00:51]} 5. Nf3 {[%emt 0:00:55]} d6 {[%emt 0:00:13]} 6. d3 {[%emt 0:00:55]} h6 {[%emt 0:00:12]} 7. a3 {[%emt 0:01:20]} a6 {[%emt 0:00:09]} 8. b4 {[%emt 0:00:24]} Ba7 {[%emt 0:00:07]} 9. Bb2 {[%emt 0:00:25]} O-O {[%emt 0:02:48]} 10. O-O {[%emt 0:00:18]} Nd4 {[%emt 0:00:57] A29: English Opening: Four Knights Variation with 4 g3.} 11. e3 {[%emt 0:02:01]} Nxf3+ {[%emt 0:01:23]} 12. Bxf3 {[%emt 0:00:06]} c6 {[%emt 0:00:16] The position is equal.} 13. d4 {[%emt 0:02:03] [#]} Bh3 $146 {[%emt 0:02:44]} ({Predecessor:} 13... exd4 14. exd4 d5 15. c5 Bf5 16. a4 b6 17. Re1 a5 18. b5 bxc5 19. bxc6 cxd4 {½-½ (76) Hansen,M (2408)-Seegert,K (2234) Denmark 2020}) 14. Re1 {[%emt 0:01:37]} exd4 {[%emt 0:11:12]} 15. exd4 {[%emt 0:00:09]} Qd7 {[%emt 0:00:28]} 16. Qd2 {[%emt 0:04:09]} Qf5 {[%emt 0:08:49]} 17. Bh1 {[%emt 0:04:41]} Rae8 {[%emt 0:00:15] Inhibits Ne4.} 18. c5 {[%emt 0:14:32]} dxc5 {[%emt 0:09:51]} 19. dxc5 {[%emt 0:08:28]} Bb8 {[%emt 0:04:07]} 20. Re2 {[%emt 0:18:26]} Be5 {[%emt 0:11:17]} 21. Rae1 {[%emt 0:03:30]} Rd8 {[%emt 0:08:04]} 22. Qc1 {[%emt 0:02:14]} Rfe8 {[%emt 0:09:42][%cal Bf8e8,Be8e6,Be6e2][%mdl 32]} 23. Ne4 {[%emt 0:05:51]} Re6 {[%emt 0:05:48] [#] And now ...Bxb2 would win.} 24. Bxe5 {[%emt 0:02:55]} Qxe5 {[%emt 0:00:12]} 25. Nd6 {[%emt 0:13:46]} ({White should play} 25. Bg2 $11 Bg4 26. Nxf6+ Qxf6 27. Rxe6 Bxe6 28. h4) 25... Qxe2 $15 {[%emt 0:00:15]} 26. Rxe2 {[%emt 0:00:04]} Rxe2 {[%emt 0:00:06]} 27. Bf3 {[%emt 0:03:42]} Re7 {[%emt 0:01:04]} 28. Bg2 {[%emt 0:00:57]} Bxg2 {[%emt 0:02:41]} 29. Kxg2 {[%emt 0:00:02]} Ne8 {[%emt 0:02:20]} 30. Nc4 {[%emt 0:02:00]} Rd5 {[%emt 0:03:08]} 31. Qf4 {[%emt 0:04:21]} Nf6 {[%emt 0:03:15]} 32. Ne3 {[%emt 0:01:59]} (32. Nd6 $11) 32... Rdd7 {[%emt 0:01:45]} ({Black should try} 32... Rd8 $1 $15) 33. h4 {[%emt 0:02:14]} (33. Nf5 $11) 33... Re4 $17 {[%emt 0:01:45]} 34. Qb8+ {[%emt 0:00:30]} Re8 {[%emt 0:00:10]} 35. Qf4 {Weighted Error Value: White=0.19 (very precise) /Black=0.09 (flawless)} 1/2-1/2

[Event "37th ECCC 2022"]
[Site "Mayrhofen"]
[Date "2022.10.03"]
[Round "1.30"]
[White "Delorme, Axel"]
[Black "Wenzel, Birger"]
[Result "1-0"]
[ECO "B12"]
[WhiteElo "2469"]
[BlackElo "1953"]
[Annotator "TA"]
[PlyCount "89"]
[EventDate "2022.10.03"]
[EventType "team-tourn"]
[EventCountry "AUT"]
[SourceTitle "playchess.com"]
[Source "ChessBase"]
[SourceQuality "1"]
[TimeControl "40/5400+30:1800+30"]

{[%evp 9,89,17,27,20,25,25,28,28,27,30,17,17,25,20,29,20,35,29,29,33,29,19,43,51,63,68,81,87,80,95,85,85,78,98,135,109,164,164,154,147,201,199,201,188,246,237,300,297,344,369,362,356,353,177,344,344,407,334,410,337,332,318,310,302,411,330,366,305,386,374,926,926,911,911,2148,2114,1801,1784,2062,2113,1478,1458]} 1. e4 {[%emt 0:00:03]} c6 {[%emt 0:00:13]} 2. d4 {[%emt 0:00:05]} d5 {[%emt 0:00:10]} 3. e5 {[%emt 0:00:25]} Bf5 {[%emt 0:00:12]} 4. Nd2 {[%emt 0:01:02]} e6 {[%emt 0:00:28]} 5. Nb3 {[%emt 0:00:11]} c5 {[%emt 0:00:29]} 6. dxc5 {[%emt 0:01:37] B12: Caro-Kann: Advance Variation.} Bxc5 {[%emt 0:00:28]} 7. Nxc5 {[%emt 0:00:23]} Qa5+ {[%emt 0:00:12]} 8. c3 {[%emt 0:00:42] White has an edge.} Qxc5 {[%emt 0:00:11]} 9. Be3 {[%emt 0:01:14]} Qc7 {[%emt 0:01:12]} 10. f4 {[%emt 0:00:12]} Ne7 {[%emt 0:01:20]} 11. Be2 {[%emt 0:01:17]} Nd7 {[%emt 0:03:10]} 12. Nf3 {[%emt 0:02:19]} a6 {[%emt 0:05:22]} 13. O-O {[%emt 0:01:41]} O-O {[%emt 0:00:32] [#]} 14. Rc1 $146 {[%emt 0:02:40]} ({Predecessor:} 14. a4 Nc5 15. Nd4 Be4 16. b4 Nd7 17. Qe1 Nf5 18. Nxf5 Bxf5 19. a5 Rac8 20. Bd4 {½-½ (33) Hjartarson,J (2509)-Girya,O (2476) Chess.com INT 2019}) 14... Rac8 {[%emt 0:12:16]} 15. c4 {[%emt 0:08:15]} Qd8 {[%emt 0:02:16]} 16. c5 {[%emt 0:03:19]} Bg4 {[%emt 0:12:42]} 17. b4 {[%emt 0:01:43] White is more active.} Nf5 {[%emt 0:01:49] White leaves nothing to chance now.} 18. Bf2 {[%emt 0:01:18]} f6 {[%emt 0:09:32]} 19. exf6 {[%emt 0:03:37]} Nxf6 {[%emt 0:04:09]} 20. h3 {[%emt 0:08:11]} Bxf3 {[%emt 0:00:21]} 21. Bxf3 {[%emt 0:00:11]} Qd7 {[%emt 0:02:34]} 22. Re1 {[%emt 0:02:36]} Kh8 {[%emt 0:04:02]} (22... Ne7 $16 {keeps fighting.}) 23. Qe2 $18 {[%emt 0:03:47]} Rce8 {[%emt 0:00:55]} 24. a3 {[%emt 0:09:24]} ({Much less strong is} 24. g4 Ne7 $14) 24... g6 {[%emt 0:01:58]} (24... Qc7 $16 {was necessary.}) 25. g4 {[%emt 0:04:30]} Ng7 {[%emt 0:00:19]} 26. Bd4 {[%emt 0:00:22]} Rf7 {[%emt 0:06:37]} (26... Rc8 $142 27. Rc2 Kg8) 27. c6 {[%emt 0:04:19]} bxc6 {[%emt 0:00:25]} 28. Qxa6 {[%emt 0:00:18]} Ng8 {[%emt 0:02:57]} 29. Qxc6 {[%emt 0:11:55]} Qxc6 {[%emt 0:00:29]} 30. Rxc6 {[%emt 0:00:09]} Rxf4 {[%emt 0:00:18]} 31. Bxg7+ {[%emt 0:00:29]} Kxg7 {[%emt 0:00:10]} 32. Bxd5 {[%emt 0:00:24]} e5 {[%emt 0:02:10]} 33. g5 {[%emt 0:06:19]} Rd4 {[%emt 0:02:18]} 34. Rc7+ {[%emt 0:01:21]} Re7 {[%emt 0:03:21]} 35. Rxe7+ {[%emt 0:00:58]} ({Don't take} 35. Rc5 h6 36. gxh6+ Nxh6) 35... Nxe7 {[%emt 0:00:11][%mdl 4096] Endgame KRB-KRN} 36. Bg2 {[%emt 0:00:30]} Nf5 {[%emt 0:00:13]} 37. Rxe5 {[%emt 0:00:31] Hoping for b5.} Rd1+ {[%emt 0:00:13]} 38. Kf2 {[%emt 0:04:14]} Ra1 {[%emt 0:00:23]} 39. b5 {[%emt 0:08:53][%cal Bb4b5,Bb5b6,Bb6b7][%mdl 32] [#] b6 is the strong threat.} Rxa3 $2 {[%emt 0:03:01]} (39... Ra2+ 40. Re2 Rxe2+ 41. Kxe2 Nd4+ 42. Kd3 Nxb5) 40. b6 {[%emt 0:00:38] White is clearly winning.} Rb3 {[%emt 0:00:35]} 41. b7 {[%emt 0:30:33]} Kf8 {[%emt 0:31:41]} 42. Ra5 {[%emt 0:01:50]} Rb2+ {[%emt 0:00:32]} 43. Kg1 {[%emt 0:00:22]} Rb1+ {[%emt 0:00:12]} 44. Kh2 {[%emt 0:00:18]} Ke7 {[%emt 0:00:40]} 45. Ra8 {[%emt 0:00:11] Weighted Error Value: White=0.09 (flawless) /Black=0.32} 1-0